bitfinex/quotes_BTCUSD_20240717
["timestamp","ask_amount","ask_price","bid_price","bid_amount"]
[1721216864976,0.00083,64838.0,64837.0,2.33878813]
[1721216865175,0.00083,64838.0,64837.0,2.32478813]
[1721216865422,0.00183,64838.0,64837.0,2.34678813]
[1721216866052,0.00183,64838.0,64837.0,2.23881353]
[1721216866317,0.00183,64838.0,64837.0,2.34623554]
[1721216866515,0.00183,64838.0,64837.0,2.36923554]
[1721216866837,0.00835,64849.0,64837.0,2.36923554]
[1721216866838,0.00835,64849.0,64837.0,0.94687854]
[1721216866978,0.00835,64849.0,64848.0,2.32302753]
[1721216867178,0.00835,64849.0,64848.0,2.46879459]
[1721216867420,0.00835,64849.0,64848.0,2.56879459]
[1721216867624,0.00835,64849.0,64848.0,2.22469601]
[1721216867970,0.00835,64849.0,64848.0,2.18738159]
[1721216868522,0.00935,64849.0,64848.0,2.19579984]
[1721216868724,0.00935,64849.0,64848.0,2.19580152]
[1721216868933,0.00935,64849.0,64848.0,2.24580152]
[1721216869261,0.00935,64849.0,64848.0,2.08795958]
[1721216869391,0.00935,64849.0,64848.0,2.24568077]
[1721216869795,0.00935,64849.0,64848.0,2.19568077]
[1721216870118,0.00935,64849.0,64848.0,2.24568077]
[1721216870309,0.00935,64849.0,64848.0,2.25968077]
[1721216870995,0.00935,64849.0,64848.0,2.28268077]
[1721216871435,0.00935,64849.0,64848.0,2.59109377]
[1721216871652,0.00747128,64849.0,64848.0,2.59109377]
[1721216872183,0.00747128,64849.0,64848.0,2.57574872]
[1721216872526,0.00747128,64849.0,64848.0,2.57493748]
[1721216874150,0.00835,64863.0,64862.0,1.418011]
[1721216874349,0.00835,64863.0,64862.0,1.68773779]
[1721216874594,0.00835,64863.0,64862.0,1.99608379]
[1721216875580,0.00935,64863.0,64862.0,2.01608379]
[1721216876787,0.00935,64863.0,64862.0,2.00508379]
[1721216876898,0.00935,64863.0,64862.0,1.99608379]
[1721216877101,0.00835,64863.0,64862.0,2.01008379]
[1721216877303,0.00935,64863.0,64862.0,2.02008379]
[1721216877510,0.00935,64863.0,64862.0,2.1268083]
[1721216877751,0.00935,64863.0,64862.0,2.1768083]
[1721216878508,0.00935,64863.0,64862.0,2.17606437]
[1721216879333,0.00935,64863.0,64862.0,2.67606437]
[1721216879543,0.00935,64863.0,64862.0,2.66071932]
[1721216880449,0.00935,64863.0,64862.0,2.61071932]
[1721216881164,0.00935,64863.0,64862.0,2.61079479]
[1721216881357,0.00935,64863.0,64862.0,2.61079478]
[1721216881693,0.00935,64863.0,64862.0,2.66079478]
[1721216881890,0.00835,64874.0,64871.0,1.279064]
[1721216882103,0.00835,64874.0,64871.0,1.54879079]
[1721216883151,0.00835,64874.0,64871.0,1.55379079]
[1721216883528,0.00835,64874.0,64871.0,1.55679079]
[1721216884032,0.00835,64874.0,64871.0,2.50859479]
[1721216884429,0.00835,64874.0,64871.0,2.30590468]
[1721216884689,0.00835,64874.0,64871.0,0.48334068]
[1721216884840,0.00835,64874.0,64871.0,0.17772679]
[1721216885043,0.306599,64872.0,64871.0,0.02334505]
[1721216885242,0.15245,64872.0,64871.0,0.83718279]
[1721216885561,0.15245,64872.0,64871.0,0.17472679]
[1721216885562,0.14975,64872.0,64871.0,0.17472679]
[1721216886402,0.303899,64872.0,64871.0,0.17472679]
[1721216886615,0.14975,64872.0,64871.0,0.16972679]
[1721216886813,0.15075,64872.0,64871.0,0.18272679]
[1721216887156,0.15075,64872.0,64871.0,0.16738174]
[1721216887514,0.14975,64872.0,64871.0,0.16838174]
[1721216887999,0.14975,64872.0,64862.0,0.309256]
[1721216888000,0.14975,64872.0,64862.0,0.000913]
[1721216888168,0.606413,64863.0,64862.0,0.01625805]
[1721216888347,0.914755,64863.0,64862.0,0.01625805]
[1721216888549,1.246097,64863.0,64862.0,0.01625805]
[1721216888933,1.296097,64863.0,64862.0,0.01625805]
[1721216889119,0.308432,64844.0,64840.0,0.4699]
[1721216889321,0.308432,64844.0,64833.0,0.46304871]
[1721216889322,0.14,64843.0,64833.0,0.46304871]
[1721216889519,0.308443,64842.0,64835.0,0.15438174]
[1721216889716,0.154224,64841.0,64835.0,0.15438174]
[1721216890442,0.294218,64843.0,64837.0,0.07717479]
[1721216890682,0.14,64843.0,64838.0,0.15438174]
[1721216891418,0.294219,64843.0,64838.0,0.15438174]
[1721216891615,0.154221,64842.0,64838.0,0.15438174]
[1721216891829,0.154226,64840.0,64838.0,0.15438174]
[1721216892032,0.308453,64840.0,64834.0,0.000913]
[1721216892171,0.15423,64839.0,64835.0,0.15438174]
[1721216892374,0.154237,64835.0,64834.0,0.000913]
[1721216892577,0.911287,64835.0,64834.0,0.000913]
[1721216892783,1.219762,64835.0,64834.0,0.000913]
[1721216893017,0.911287,64835.0,64834.0,0.000913]
[1721216893640,1.219762,64835.0,64834.0,0.000913]
[1721216895186,0.916287,64835.0,64834.0,0.000913]
[1721216895550,1.224762,64835.0,64834.0,0.000913]
[1721216896040,1.86061874,64835.0,64834.0,0.000913]
[1721216896232,1.90296287,64835.0,64834.0,0.000913]
[1721216896459,1.86061874,64835.0,64834.0,0.000913]
[1721216896780,1.80561874,64835.0,64834.0,0.000913]
[1721216896991,1.80561874,64835.0,64834.0,0.001913]
[1721216897188,1.86661874,64835.0,64834.0,0.002913]
[1721216897398,1.86661874,64835.0,64834.0,0.001913]
[1721216897823,1.85561874,64835.0,64834.0,0.000913]
[1721216898240,1.50614374,64835.0,64834.0,0.002913]
[1721216898682,1.54714374,64835.0,64834.0,0.001913]
[1721216898889,1.85561874,64835.0,64834.0,0.001913]
[1721216900050,1.86661874,64835.0,64834.0,0.002913]
[1721216900247,2.32944331,64835.0,64834.0,0.002913]
[1721216900453,1.86661874,64835.0,64834.0,0.002913]
[1721216901125,1.86661874,64835.0,64834.0,0.001913]
[1721216901332,1.85561874,64835.0,64834.0,0.000913]
[1721216901532,1.86961874,64835.0,64834.0,0.002913]
[1721216901877,1.86961874,64835.0,64834.0,0.001913]
[1721216902369,1.025287,64835.0,64834.0,0.001913]
[1721216902569,0.716812,64835.0,64834.0,0.001913]
[1721216902702,1.333762,64835.0,64834.0,0.001913]
[1721216903197,1.016287,64835.0,64834.0,0.001913]
[1721216903544,1.025287,64835.0,64834.0,0.000913]
[1721216903765,0.014,64835.0,64834.0,0.000913]
[1721216903977,0.007,64835.0,64834.0,0.001913]
[1721216904310,0.015,64835.0,64834.0,0.001913]
[1721216904717,0.008,64835.0,64834.0,0.000913]
[1721216904941,0.154237,64835.0,64834.0,0.000913]
[1721216905138,0.154237,64835.0,64834.0,0.001913]
[1721216905139,0.462712,64835.0,64834.0,0.001913]
[1721216905340,0.772187,64835.0,64834.0,0.001913]
[1721216905587,0.463712,64835.0,64834.0,0.001913]
[1721216905791,0.001,64835.0,64834.0,0.001913]
[1721216906094,0.155237,64835.0,64834.0,0.001913]
[1721216906585,0.001,64835.0,64834.0,0.000913]
[1721216906830,0.005,64835.0,64834.0,0.000913]
[1721216907084,0.001,64835.0,64834.0,0.15529474]
[1721216907332,0.0608,64848.0,64834.0,0.23429474]
[1721216907591,0.154207,64848.0,64843.0,0.07717479]
[1721216907826,0.308411,64849.0,64843.0,0.07717479]
[1721216908064,0.0806,64851.0,64846.0,0.15421]
[1721216908301,0.0608,64853.0,64844.0,0.15438174]
[1721216908548,0.0608,64853.0,64838.0,0.2]
[1721216908814,0.154209,64847.0,64839.0,0.154227]
[1721216909275,0.308415,64848.0,64838.0,0.15438174]
[1721216909516,0.308457,64839.0,64834.0,0.000913]
[1721216909777,0.154228,64839.0,64835.0,0.15438174]
[1721216910017,0.154228,64839.0,64834.0,0.000913]
[1721216910018,0.154237,64835.0,64834.0,0.000913]
[1721216910283,0.541512,64835.0,64834.0,0.000913]
[1721216910507,0.849987,64835.0,64834.0,0.000913]
[1721216911483,0.0621,64837.0,64834.0,0.000913]
[1721216911736,0.156237,64835.0,64834.0,0.000913]
[1721216912008,0.002,64835.0,64834.0,0.000913]
[1721216912263,0.308426,64846.0,64834.0,0.15529474]
[1721216912495,0.154218,64843.0,64837.0,0.07717479]
[1721216912689,0.154221,64842.0,64835.0,0.15438174]
[1721216912819,0.308437,64843.0,64835.0,0.15438174]
[1721216913018,0.154219,64843.0,64836.0,0.07717479]
[1721216913232,0.154205,64849.0,64841.0,0.154222]
[1721216913439,0.154205,64849.0,64845.0,0.07717479]
[1721216914041,0.154205,64849.0,64841.0,0.15438174]
[1721216914241,0.308386,64854.0,64846.0,0.07717479]
[1721216914535,0.1542,64851.0,64846.0,0.07717479]
[1721216914690,0.1381,64859.0,64847.0,0.154207]
[1721216914691,0.308377,64856.0,64847.0,0.154207]
[1721216914848,0.308371,64857.0,64847.0,0.154207]
[1721216915047,0.308371,64857.0,64846.0,0.07717479]
[1721216915048,0.154191,64855.0,64848.0,0.154206]
[1721216915250,0.154191,64855.0,64847.0,0.154208]
[1721216915456,0.154198,64852.0,64846.0,0.07717479]
[1721216916001,0.15419,64855.0,64847.0,0.30858974]
[1721216916202,0.003,64849.0,64847.0,0.30858974]
[1721216916424,0.003,64849.0,64847.0,0.15438174]
[1721216916585,0.308385,64854.0,64847.0,0.15438174]
[1721216916789,0.154195,64853.0,64847.0,0.15438174]
[1721216917126,0.160191,64855.0,64847.0,0.30858974]
[1721216917503,0.154192,64854.0,64847.0,0.31258974]
[1721216917727,0.154192,64854.0,64847.0,0.30858974]
[1721216919003,0.001,64853.0,64848.0,0.154206]
[1721216919354,0.005,64854.0,64848.0,0.154206]
[1721216919592,0.005,64854.0,64841.0,0.0659]
[1721216919793,0.154207,64848.0,64842.0,0.15438174]
[1721216919945,0.154207,64848.0,64843.0,0.07717479]
[1721216920148,0.308448,64841.0,64830.0,0.0659]
[1721216920378,0.1387,64853.0,64839.0,0.07717479]
[1721216920379,0.154219,64843.0,64839.0,0.07717479]
[1721216920581,0.308407,64850.0,64840.0,0.15438174]
[1721216920787,0.154209,64847.0,64840.0,0.30860674]
[1721216920992,0.154209,64847.0,64842.0,0.005]
[1721216921409,0.308415,64848.0,64842.0,0.005]
[1721216922084,0.154209,64847.0,64842.0,0.005]
[1721216922266,0.1387,64853.0,64839.0,0.07717479]
[1721216922459,0.1387,64853.0,64834.0,0.000913]
[1721216922460,0.154234,64837.0,64834.0,0.000913]
[1721216922680,0.154234,64837.0,64836.0,0.07717479]
[1721216923103,0.154231,64838.0,64836.0,0.07717479]
[1721216923942,0.308423,64846.0,64837.0,0.15438174]
[1721216924128,0.310414,64848.0,64837.0,0.15438174]
[1721216924335,0.154237,64835.0,64834.0,0.000913]
[1721216924744,0.308468,64837.0,64834.0,0.000913]
[1721216924948,0.4627,64837.0,64836.0,0.07717479]
[1721216925392,0.0776,64837.0,64834.0,0.000913]
[1721216925593,0.295832,64837.0,64836.0,0.013]
[1721216925749,0.604297,64837.0,64836.0,0.001]
[1721216926277,0.450065,64837.0,64834.0,0.014913]
[1721216926488,0.155233,64837.0,64836.0,0.07717479]
[1721216926717,0.001,64837.0,64836.0,0.07717479]
[1721216927074,0.155232,64837.0,64836.0,0.07717479]
[1721216927485,0.001,64837.0,64836.0,0.07717479]
[1721216927695,0.1406,64843.0,64836.0,0.07717479]
[1721216927696,0.154219,64843.0,64837.0,0.0637]
[1721216928205,0.30843,64845.0,64837.0,0.0637]
[1721216928206,0.154216,64844.0,64837.0,0.217932]
[1721216928436,0.308379,64856.0,64843.0,0.07717479]
[1721216928641,0.370089,64862.0,64851.0,0.14197479]
[1721216928845,0.154193,64854.0,64851.0,0.14197479]
[1721216929047,0.15419,64855.0,64851.0,0.14197479]
[1721216929809,0.308379,64856.0,64852.0,0.15438174]
[1721216929810,0.019,64856.0,64852.0,0.15438174]
[1721216930012,0.011,64856.0,64852.0,0.15438174]
[1721216930171,0.003,64855.0,64852.0,0.15438174]
[1721216930368,0.003,64855.0,64852.0,0.30857774]
[1721216930592,0.003,64855.0,64852.0,0.15438174]
[1721216930964,0.003,64855.0,64846.0,0.0798]
[1721216931171,0.003,64855.0,64847.0,0.15438174]
[1721216931172,0.154192,64854.0,64847.0,0.15438174]
[1721216931373,0.009,64855.0,64851.0,0.001]
[1721216931577,0.154194,64853.0,64851.0,0.001]
[1721216931799,0.009,64855.0,64852.0,0.23155653]
[1721216932001,0.155013,64862.0,64852.0,0.23155653]
[1721216932204,0.007,64855.0,64854.0,0.154191]
[1721216932750,0.154176,64861.0,64854.0,0.154191]
[1721216932945,0.00084,64862.0,64860.0,0.07717479]
[1721216933275,0.00084,64862.0,64856.0,0.154187]
[1721216933513,0.00084,64862.0,64856.0,0.30856874]
[1721216934116,0.00084,64862.0,64860.0,0.0832]
[1721216934320,0.00084,64862.0,64860.0,0.23758174]
[1721216934518,0.00084,64862.0,64861.0,0.462526]
[1721216934976,0.00084,64862.0,64860.0,0.39175874]
[1721216935182,0.00084,64862.0,64861.0,0.154175]
[1721216935390,0.01484,64862.0,64861.0,0.154175]
[1721216935842,0.00084,64862.0,64861.0,0.154175]
[1721216936263,0.01484,64862.0,64861.0,0.154175]
[1721216938080,0.00084,64862.0,64861.0,0.006]
[1721216940462,0.463359,64862.0,64861.0,0.006]
[1721216940668,1.080051,64862.0,64861.0,0.006]
[1721216940867,1.103051,64862.0,64861.0,0.006]
[1721216942127,1.67717874,64862.0,64861.0,0.004]
[1721216942349,0.154216,64844.0,64843.0,0.07717479]
[1721216942551,0.154216,64844.0,64836.0,0.15947479]
[1721216942552,0.154223,64841.0,64839.0,0.061768]
[1721216942751,0.308432,64845.0,64836.0,0.15947479]
[1721216942752,0.154219,64843.0,64836.0,0.15947479]
[1721216942930,0.308432,64845.0,64836.0,0.31370979]
[1721216943150,0.154218,64843.0,64837.0,0.061769]
[1721216943557,0.0614,64852.0,64837.0,0.061769]
[1721216943558,0.308404,64850.0,64837.0,0.061769]
[1721216943757,0.154208,64848.0,64846.0,0.07717479]
[1721216944375,0.154209,64847.0,64846.0,0.07717479]
[1721216944792,0.308403,64851.0,64846.0,0.07717479]
[1721216945044,0.154205,64849.0,64846.0,0.07717479]
[1721216945550,0.1401,64855.0,64846.0,0.07717479]
[1721216945551,0.154206,64848.0,64846.0,0.07717479]
[1721216945731,0.308406,64850.0,64846.0,0.07717479]
[1721216945880,0.1401,64855.0,64846.0,0.07717479]
[1721216945881,0.462627,64847.0,64846.0,0.07717479]
[1721216946087,0.154209,64847.0,64846.0,0.07717479]
[1721216946284,0.154207,64848.0,64846.0,0.07717479]
[1721216946830,0.308402,64851.0,64846.0,0.07717479]
[1721216946968,0.154206,64849.0,64846.0,0.07717479]
[1721216947172,0.154206,64849.0,64846.0,0.07917479]
[1721216947374,0.154206,64849.0,64846.0,0.08217479]
[1721216948053,0.154207,64848.0,64846.0,0.08217479]
[1721216948604,0.308397,64852.0,64846.0,0.08017479]
[1721216948860,0.154206,64849.0,64846.0,0.07817479]
[1721216949397,0.154206,64849.0,64846.0,0.07717479]
[1721216949593,0.154206,64849.0,64847.0,0.1448]
[1721216949822,0.308358,64860.0,64848.0,0.15438174]
[1721216949980,0.00084,64862.0,64853.0,0.07717479]
[1721216950184,0.00084,64862.0,64856.0,0.154187]
[1721216950383,0.00084,64862.0,64857.0,0.15438174]
[1721216950582,0.155014,64862.0,64857.0,0.15438174]
[1721216950851,0.00084,64862.0,64857.0,0.15438174]
[1721216951102,0.00084,64862.0,64857.0,0.30856574]
[1721216951311,0.00084,64862.0,64857.0,0.15438174]
[1721216951514,0.154177,64861.0,64857.0,0.15438174]
[1721216951919,0.00084,64862.0,64857.0,0.15438174]
[1721216952146,0.00084,64862.0,64857.0,0.30856674]
[1721216952349,0.00084,64862.0,64857.0,0.15438174]
[1721216952350,0.154176,64861.0,64857.0,0.15438174]
[1721216952765,0.00084,64862.0,64857.0,0.15738174]
[1721216952976,0.00084,64862.0,64857.0,0.31156574]
[1721216953381,0.00084,64862.0,64857.0,0.008]
[1721216953794,0.154182,64858.0,64857.0,0.008]
[1721216954010,0.462547,64858.0,64857.0,0.008]
[1721216954430,1.167777,64858.0,64857.0,0.008]
[1721216955470,1.167777,64858.0,64857.0,0.007]
[1721216955675,0.154208,64848.0,64846.0,0.000924]
[1721216956076,0.154209,64847.0,64846.0,0.000924]
[1721216957045,0.771045,64847.0,64846.0,0.000924]
[1721216957252,0.772045,64847.0,64846.0,0.012924]
[1721216957462,0.772045,64847.0,64846.0,0.026924]
[1721216958243,0.838545,64847.0,64846.0,0.026924]
[1721216958641,0.838545,64847.0,64846.0,0.000924]
[1721216958642,0.837545,64847.0,64846.0,0.000924]
[1721216959067,0.839545,64847.0,64846.0,0.000924]
[1721216959414,0.837545,64847.0,64846.0,0.000924]
[1721216959924,0.843545,64847.0,64846.0,0.001924]
[1721216960118,0.006,64847.0,64846.0,0.001924]
[1721216960318,0.154204,64849.0,64846.0,0.000924]
[1721216960472,0.462627,64847.0,64846.0,0.000924]
[1721216960677,0.468627,64847.0,64846.0,0.001924]
[1721216962048,0.462627,64847.0,64846.0,0.000924]
[1721216962487,0.465627,64847.0,64846.0,0.000924]
[1721216962693,0.157209,64847.0,64846.0,0.000924]
[1721216962902,0.462627,64847.0,64846.0,0.001924]
[1721216963312,0.464627,64847.0,64846.0,0.001924]
[1721216963521,0.156209,64847.0,64846.0,0.001924]
[1721216963733,0.002,64847.0,64846.0,0.001924]
[1721216963964,0.002,64847.0,64846.0,0.065124]
[1721216964172,0.002,64847.0,64846.0,0.75983974]
[1721216964314,0.002,64847.0,64846.0,1.06826274]
[1721216964694,0.002,64847.0,64846.0,1.45386053]
[1721216965382,0.154177,64861.0,64854.0,0.154192]
[1721216965581,0.157808,64862.0,64856.0,0.1382]
[1721216965813,0.155014,64862.0,64856.0,0.1382]
[1721216966177,0.00084,64862.0,64861.0,0.154175]
[1721216966336,0.00084,64862.0,64856.0,0.21588174]
[1721216966541,0.155014,64862.0,64856.0,0.21588174]
[1721216966758,0.00084,64862.0,64856.0,0.21588174]
[1721216967028,0.00084,64862.0,64857.0,0.154183]
[1721216967233,0.00084,64862.0,64861.0,0.154175]
[1721216967447,0.00084,64862.0,64861.0,0.30855674]
[1721216968063,0.00084,64862.0,64861.0,0.15438174]
[1721216968386,0.00084,64862.0,64861.0,0.30955674]
[1721216968589,0.01484,64862.0,64861.0,0.30955674]
[1721216969260,0.00084,64862.0,64861.0,0.30955674]
[1721216969447,0.00084,64862.0,64861.0,0.31055674]
[1721216969448,0.01484,64862.0,64861.0,0.31055674]
[1721216970240,0.00084,64862.0,64856.0,0.0615]
[1721216970413,0.15418,64860.0,64856.0,0.0615]
[1721216970614,0.00084,64862.0,64856.0,0.0615]
[1721216970861,0.00084,64862.0,64856.0,0.215687]
[1721216971063,0.00084,64862.0,64856.0,0.0615]
[1721216971293,0.003634,64862.0,64856.0,0.0615]
[1721216971497,0.00084,64862.0,64856.0,0.215687]
[1721216971647,0.004634,64862.0,64861.0,0.002]
[1721216971857,0.00184,64862.0,64861.0,0.002]
[1721216972059,0.00084,64862.0,64855.0,0.462565]
[1721216972263,0.00084,64862.0,64856.0,0.001]
[1721216972512,0.005634,64862.0,64856.0,0.155187]
[1721216972766,0.00284,64862.0,64856.0,0.154187]
[1721216972953,0.00284,64862.0,64861.0,0.002]
[1721216972954,0.155013,64862.0,64861.0,0.002]
[1721216973112,0.155013,64862.0,64854.0,0.23136479]
[1721216973336,0.155013,64862.0,64854.0,0.23155653]
[1721216973337,0.00184,64862.0,64854.0,0.23155653]
[1721216973520,0.00184,64862.0,64856.0,0.156186]
[1721216974788,0.00184,64862.0,64856.0,0.154186]
[1721216974789,0.00084,64862.0,64856.0,0.154186]
[1721216974991,0.00184,64862.0,64856.0,0.154186]
[1721216975228,0.00184,64862.0,64856.0,0.156187]
[1721216975432,0.00184,64862.0,64859.0,0.154179]
[1721216975632,0.00084,64862.0,64859.0,0.154179]
[1721216975985,0.00084,64862.0,64861.0,0.23134979]
[1721216976198,0.00084,64862.0,64861.0,0.69408253]
[1721216976402,0.00084,64862.0,64861.0,1.00243353]
[1721216976614,0.00084,64862.0,64861.0,1.31078453]
[1721216978261,0.00084,64862.0,64861.0,1.41860411]
[1721216978464,0.00084,64862.0,64861.0,1.42760411]
[1721216978692,0.00084,64862.0,64861.0,1.31078453]
[1721216978930,0.00184,64862.0,64861.0,1.32278453]
[1721216979130,0.00184,64862.0,64861.0,1.33678453]
[1721216979329,0.00084,64862.0,64861.0,1.31078453]
[1721216979749,0.00184,64862.0,64861.0,1.33678453]
[1721216979948,0.00184,64862.0,64861.0,1.88473553]
[1721216980102,0.00184,64862.0,64861.0,1.68444215]
[1721216980305,0.00184,64862.0,64861.0,1.29891636]
[1721216981127,0.00184,64862.0,64861.0,1.29951077]
[1721216981343,0.00184,64862.0,64861.0,0.012]
[1721216981741,0.00084,64862.0,64856.0,0.262]
[1721216981976,0.00084,64862.0,64861.0,0.014]
[1721216982183,0.00184,64862.0,64861.0,0.026]
[1721216982385,0.00184,64862.0,64861.0,0.012]
[1721216982610,0.00084,64862.0,64859.0,0.15418]
[1721216982764,0.00084,64862.0,64861.0,0.013]
[1721216982970,0.00184,64862.0,64861.0,0.013]
[1721216983371,0.00084,64862.0,64861.0,0.013]
[1721216983941,0.00084,64862.0,64861.0,0.62990774]
[1721216984114,0.00184,64862.0,64861.0,0.63990774]
[1721216984495,0.00184,64862.0,64861.0,0.62690774]
[1721216985323,0.00184,64862.0,64861.0,0.93525874]
[1721216985526,0.00184,64862.0,64861.0,1.37880974]
[1721216986257,0.00184,64862.0,64861.0,1.39180974]
[1721216986897,0.00184,64862.0,64861.0,1.70016074]
[1721216987100,0.00184,64862.0,64861.0,1.90807387]
[1721216988061,0.00184,64862.0,64861.0,1.95807387]
[1721216988280,0.00184,64862.0,64861.0,1.90807387]
[1721216989065,0.00184,64862.0,64861.0,1.90875283]
[1721216990308,0.00184,64862.0,64861.0,1.60040183]
[1721216992973,0.00184,64862.0,64861.0,1.90875283]
[1721216993338,0.00184,64862.0,64861.0,1.95875283]
[1721216993540,0.00184,64862.0,64861.0,1.90875283]
[1721216993742,0.00184,64862.0,64861.0,1.60040183]
[1721216994375,0.00184,64862.0,64861.0,1.90875283]
[1721216995225,0.00184,64862.0,64861.0,1.60040183]
[1721216995433,0.00184,64862.0,64861.0,1.60001047]
[1721216995777,0.00184,64862.0,64861.0,1.29165947]
[1721216997630,0.00184,64862.0,64861.0,1.30000947]
[1721216998426,0.00184,64862.0,64861.0,1.60836047]
[1721217001790,0.00184,64862.0,64861.0,1.30000947]
[1721217002002,0.00184,64862.0,64861.0,1.22500947]
[1721217003905,0.00184,64862.0,64861.0,1.11680874]
[1721217004135,0.00184,64862.0,64861.0,1.22528029]
[1721217004492,0.00184,64862.0,64861.0,1.53363129]
[1721217004696,0.00184,64862.0,64861.0,1.97248229]
[1721217004996,0.00184,64862.0,64861.0,1.61413129]
[1721217005454,0.00184,64862.0,64861.0,1.67813083]
[1721217005789,0.00184,64862.0,64861.0,1.98648183]
[1721217007112,0.00184,64862.0,64861.0,1.97245544]
[1721217007333,0.00184,64862.0,64861.0,2.03645486]
[1721217007653,0.00835,64872.0,64871.0,1.785868]
[1721217007975,0.00835,64872.0,64871.0,2.37265984]
[1721217008179,0.00835,64872.0,64871.0,2.21269386]
[1721217008383,0.00835,64872.0,64871.0,2.16269386]
[1721217008585,0.00835,64872.0,64871.0,1.85438986]
[1721217008844,0.00835,64872.0,64871.0,0.26282644]
[1721217009033,0.00835,64872.0,64862.0,0.154173]
[1721217009034,0.154156,64870.0,64862.0,0.154173]
[1721217009311,0.767748,64872.0,64861.0,0.00835]
[1721217009312,0.308337,64864.0,64861.0,0.00835]
[1721217009509,0.002794,64863.0,64861.0,0.02235]
[1721217009712,0.002794,64864.0,64861.0,0.00835]
[1721217009915,0.154173,64862.0,64861.0,0.00835]
[1721217010130,0.602019,64862.0,64861.0,0.00835]
[1721217010337,0.602019,64862.0,64856.0,0.000924]
[1721217010338,0.602055,64857.0,64856.0,0.000924]
[1721217010522,0.910425,64857.0,64856.0,0.000924]
[1721217010738,1.241795,64857.0,64856.0,0.000924]
[1721217010942,0.602055,64857.0,64856.0,0.000924]
[1721217011145,0.293685,64857.0,64856.0,0.000924]
[1721217011374,0.1395,64857.0,64856.0,0.000924]
[1721217011506,0.308327,64867.0,64857.0,0.154184]
[1721217011708,0.15417,64864.0,64857.0,0.30856574]
[1721217011909,0.002794,64863.0,64859.0,0.154179]
[1721217012119,0.002794,64863.0,64857.0,0.46275074]
[1721217012120,0.002794,64865.0,64858.0,0.154181]
[1721217012339,0.002794,64865.0,64861.0,0.002]
[1721217012542,0.154169,64864.0,64861.0,0.002]
[1721217012746,0.002794,64863.0,64857.0,0.30856574]
[1721217012979,0.002794,64865.0,64864.0,0.154168]
[1721217013132,0.002794,64869.0,64864.0,0.30854974]
[1721217013353,0.1401,64870.0,64865.0,0.15438174]
[1721217013556,0.002794,64869.0,64865.0,0.15438174]
[1721217013935,0.002794,64869.0,64867.0,0.15416]
[1721217014134,0.00835,64872.0,64870.0,0.77077]
[1721217014135,0.002794,64871.0,64870.0,0.77077]
[1721217014333,0.00835,64872.0,64871.0,0.462456]
[1721217014610,0.00835,64872.0,64871.0,1.48166932]
[1721217015640,0.00835,64872.0,64871.0,1.48266932]
[1721217016060,0.00935,64872.0,64871.0,1.38224574]
[1721217016265,0.00935,64872.0,64871.0,1.49290293]
[1721217016535,0.00935,64872.0,64871.0,1.38224574]
[1721217016807,0.00935,64872.0,64871.0,1.11859897]
[1721217017323,0.00935,64872.0,64871.0,1.42690297]
[1721217018342,0.00935,64872.0,64871.0,1.11859897]
[1721217018831,0.00935,64872.0,64871.0,1.05379897]
[1721217019276,0.225299,64872.0,64871.0,0.12865723]
[1721217019490,0.225299,64872.0,64871.0,0.018]
[1721217020002,0.07115,64872.0,64871.0,0.018]
[1721217020406,0.225299,64872.0,64871.0,0.018]
[1721217020640,0.921697,64872.0,64871.0,0.018]
[1721217021200,1.229996,64872.0,64871.0,0.018]
[1721217021431,1.76567674,64872.0,64871.0,0.018]
[1721217021642,1.81147563,64872.0,64871.0,0.018]
[1721217021843,1.82754605,64872.0,64871.0,0.018]
[1721217022049,1.89524439,64872.0,64871.0,0.01]
[1721217022251,1.222197,64863.0,64862.0,0.000924]
[1721217024867,1.227197,64863.0,64862.0,0.000924]
[1721217025110,1.226197,64863.0,64862.0,0.000924]
[1721217025319,1.222197,64863.0,64862.0,0.000924]
[1721217025519,1.229197,64863.0,64862.0,0.000924]
[1721217025954,0.612513,64863.0,64862.0,0.000924]
[1721217026811,0.920855,64863.0,64862.0,0.000924]
[1721217027509,1.229197,64863.0,64862.0,0.000924]
[1721217027720,1.223197,64863.0,64862.0,0.000924]
[1721217027925,1.229197,64863.0,64862.0,0.000924]
[1721217028121,1.228197,64863.0,64862.0,0.000924]
[1721217028326,0.919855,64863.0,64862.0,0.000924]
[1721217028533,0.913855,64863.0,64862.0,0.000924]
[1721217028871,0.919855,64863.0,64862.0,0.000924]
[1721217029293,0.942855,64863.0,64862.0,0.000924]
[1721217029507,1.295197,64863.0,64862.0,0.000924]
[1721217029719,1.245197,64863.0,64862.0,0.000924]
[1721217030975,1.249197,64863.0,64862.0,0.000924]
[1721217031385,1.245197,64863.0,64862.0,0.000924]
[1721217031786,1.2560745,64863.0,64862.0,0.000924]
[1721217032254,1.2560745,64863.0,64856.0,0.000924]
[1721217032255,1.079295,64857.0,64856.0,0.000924]
[1721217032422,1.42237674,64857.0,64856.0,0.000924]
[1721217032635,0.609827,64847.0,64846.0,0.000924]
[1721217032797,0.154232,64838.0,64836.0,0.5261475]
[1721217032998,0.00486679,64837.0,64834.0,0.062685]
[1721217033202,0.154231,64838.0,64834.0,0.000913]
[1721217033405,0.002794,64837.0,64834.0,0.000913]
[1721217033756,0.16189379,64837.0,64834.0,0.000913]
[1721217033898,0.00766079,64837.0,64836.0,0.07717479]
[1721217034114,0.00486679,64837.0,64836.0,0.07717479]
[1721217034641,0.15909879,64837.0,64836.0,0.07717479]
[1721217035045,0.00766079,64837.0,64836.0,0.07717479]
[1721217035248,0.00586679,64837.0,64836.0,0.09117479]
[1721217035630,0.00586679,64837.0,64836.0,0.10517479]
[1721217036257,0.00866079,64837.0,64836.0,0.028]
[1721217036458,0.00586679,64837.0,64836.0,0.028]